[Event "SixDays Budapest January IM-B 2025"]
[Site "Budapest"]
[Date "2025.01.27"]
[Round "2.1"]
[White "Subramanian, Anusha"]
[Black "Tancsa, Tamas"]
[Result "0-1"]
[Annotator "TA"]
[ECO "E73"]
[WhiteElo "2044"]
[BlackElo "2192"]
[PlyCount "50"]
[EventDate "2025.01.24"]
[EventType "tourn"]
[EventCountry "HUN"]
[SourceTitle "playchess.com"]
[Source "ChessBase"]
[SourceQuality "1"]
[TimeControl "5400+30"]

{[%evp 17,50,38,50,16,38,30,38,0,23,21,0,0,-28,-78,-79,-67,-49,-37,-45,-35,-31,-39,-33,-243,-245,-240,-234,-377,-389,-611,-600,-29987,456,-29988,-29988]} 1. d4 {[%emt 0:00:03]} Nf6 {[%emt 0:00:05]} 2. c4 {[%emt 0:00:04]} g6 {[%emt 0:00:05]} 3. Nc3 {[%emt 0:00:04]} Bg7 {[%emt 0:00:05]} 4. e4 {[%emt 0:00:05]} d6 {[%emt 0:00:06]} 5. Be2 O-O {[%emt 0:00:24]} 6. Bg5 {[%emt 0:00:10]} Na6 {[%emt 0:06:34]} 7. Qd2 {[%emt 0:00:27]} e5 {[%emt 0:02:05]} 8. d5 {[%emt 0:00:14]} Qe8 {[%emt 0:03:54]} 9. f3 {[%emt 0:01:56]} Nh5 {[%emt 0:04:25]} 10. Be3 {[%emt 0:11:51] E73: King's Indian: Averbakh Variation without 6...c5.} f5 {[%emt 0:01:58][%cal Oh5f4]} 11. O-O-O {[%emt 0:06:04]} b6 {[%emt 0:00:28]} 12. g3 {[%emt 0:08:07] White is slightly better. Inhibits Nf4.} Bd7 {[%emt 0:01:48]} 13. exf5 $146 {[%emt 0:07:34]} (13. Re1 Nc5 14. b4 Nb7 15. Bd1 a5 16. b5 {½-½ Gaprindashvili,N (2305)-Vinke,D (2166) EU-ch Seniors 65 18th 2018 (9)}) 13... gxf5 {[%emt 0:01:05]} 14. f4 {[%emt 0:04:18]} Nf6 {[%emt 0:00:14]} 15. h4 {[%emt 0:05:02]} (15. fxe5 $11 dxe5 16. Rf1) 15... Nc5 $17 {[%emt 0:02:53]} 16. Bf3 {[%emt 0:09:30]} exf4 {[%emt 0:00:35]} 17. gxf4 {[%emt 0:01:21]} Nfe4 {[%emt 0:03:05]} 18. Nxe4 {[%emt 0:10:20]} fxe4 {[%emt 0:00:09]} 19. Be2 {[%emt 0:01:21] Prevents Nd3+.} Bf5 $36 {[%emt 0:02:33][%mdl 2048] [#] and ...Nd3+ would now be decisive Black has some pressure.} (19... Nd3+ {looks sharper.} 20. Bxd3 exd3 21. Nh3 Qe4) 20. Rh2 $2 {[%emt 0:06:37]} ({White should try} 20. Nh3 $15) 20... Nd3+ $19 {[%emt 0:01:45]} 21. Bxd3 {[%emt 0:00:25]} exd3 {[%emt 0:00:07]} 22. Re1 {[%emt 0:04:40]} (22. b3 $142) 22... Qa4 {[%emt 0:02:19][%csl LRa2,LRc4]} 23. b3 {[%emt 0:00:57]} (23. Kb1 $142 Qxc4 24. Rg2) 23... Qa3+ {[%emt 0:00:05]} 24. Kb1 {[%emt 0:00:47] [#]} Qb2+ $1 {[%emt 0:00:09][%mdl 512]} 25. Qxb2 {[%emt 0:00:09]} d2+ {[%emt 0:00:05] Black took control after the opening.   Weighted Error Value: White=1.04/Black=0.06 (flawless)   Loses game:     	White=1     	---        Mistake:       	White=3     	---        Inaccurate:     	White=3     	---        OK:         	White=4     	Black=4      Best:        	---       	Black=2} 0-1

[Event "SixDays Budapest January IM-B 2025"]
[Site "Budapest"]
[Date "2025.01.27"]
[Round "2.2"]
[White "Vandan Alankar Sawai"]
[Black "Papp, Bence"]
[Result "0-1"]
[Annotator "TA"]
[ECO "B18"]
[WhiteElo "2177"]
[BlackElo "2272"]
[PlyCount "62"]
[EventDate "2025.01.24"]
[EventType "tourn"]
[EventCountry "HUN"]
[SourceTitle "playchess.com"]
[Source "ChessBase"]
[SourceQuality "1"]
[TimeControl "5400+30"]

{[%evp 23,62,-7,0,0,15,24,41,-19,-18,-45,-31,-42,-50,-41,-39,-110,-102,-107,-127,-220,-220,-218,-214,-219,-221,-247,-235,-300,-234,-300,-300,-298,-294,-378,-384,-393,-383,-373,-291,-461,-350]} 1. e4 {[%emt 0:00:23]} c6 {[%emt 0:00:22]} 2. d4 {[%emt 0:00:43]} d5 {[%emt 0:00:06]} 3. Nc3 {[%emt 0:00:21]} dxe4 {[%emt 0:00:11]} 4. Nxe4 {[%emt 0:00:19]} Bf5 {[%emt 0:01:27]} 5. Ng3 {[%emt 0:00:16]} Bg6 {[%emt 0:00:06]} 6. h4 {[%emt 0:00:43]} h6 {[%emt 0:00:06]} 7. f4 {[%emt 0:07:34]} e6 {[%emt 0:00:10]} 8. Nf3 {[%emt 0:00:08]} Nd7 {[%emt 0:04:22]} 9. h5 {[%emt 0:00:22]} Bh7 {[%emt 0:00:09]} 10. Bd3 {[%emt 0:00:13]} Bxd3 {[%emt 0:00:07]} 11. Qxd3 {[%emt 0:00:08]} Qc7 {[%emt 0:06:36]} 12. Bd2 {[%emt 0:01:08]} Ngf6 {[%emt 0:12:22]} 13. Ne4 {[%emt 0:01:13] B18: Classical Caro-Kann: 4...Bf5 sidelines.} c5 $146 {[%emt 0:15:35]} (13... O-O-O 14. O-O-O c5 15. Kb1 c4 16. Qe2 Nxe4 17. Qxe4 Nf6 18. Qe2 Bd6 19. Ne5 Bxe5 20. fxe5 Nd5 {½-½ Martin Del Campo C,R (2420)-Ruck,R (2574) WMSG Blitz Team 1st 2008 (5)}) 14. Nxf6+ {[%emt 0:03:22]} Nxf6 {[%emt 0:00:38]} 15. Ne5 {[%emt 0:00:07] Strong Square White (e5)} (15. Qb5+ $14 Nd7 16. f5) 15... O-O-O $11 {[%emt 0:05:36][%cal Ba8d8,Bd8d4,Bd4e4][%mdl 32]} 16. Qa3 {[%emt 0:01:45]} Rxd4 {[%emt 0:13:48]} 17. Qxa7 {[%emt 0:00:49]} Re4+ {[%emt 0:01:12]} 18. Kf1 {[%emt 0:01:07]} Bd6 {[%emt 0:01:17]} 19. Qa8+ {[%emt 0:03:09]} ({White should play} 19. Rh3 $1 $15) 19... Qb8 $17 {[%emt 0:00:12]} 20. Qxb8+ {[%emt 0:00:19]} Bxb8 {[%emt 0:00:16]} 21. Nd3 {[%emt 0:00:20]} (21. Nxf7 $2 Rf8 22. Ne5 Bxe5 23. fxe5 Ng4+ (23... Nxh5+ 24. Kg1 $17) 24. Kg1 Rf2 $19 (24... Nxe5 25. Re1 $11) (24... Rxe5 25. Rh4 $11)) (21. Re1 $17) 21... Rd8 $19 {[%emt 0:01:51]} 22. b3 {[%emt 0:09:20] [#]} c4 $1 {[%emt 0:01:55]} 23. bxc4 {[%emt 0:00:49]} Rxc4 {[%emt 0:00:13][%cal Od8d5]} 24. Ke2 {[%emt 0:00:58]} Ne4 {[%emt 0:01:16]} (24... Rxc2 25. Rac1 Rxc1 26. Rxc1+ Bc7 27. Ba5 $17) 25. Rh3 {[%emt 0:01:53] Dodges Ng3+} Bc7 {[%emt 0:04:48]} (25... Rxc2 26. Rc1 Nc3+ 27. Ke1 Rxc1+ 28. Bxc1 $19) 26. Kd1 {[%emt 0:02:11]} Nxd2 {[%emt 0:03:21]} 27. Kxd2 {[%emt 0:00:08]} Bxf4+ {[%emt 0:00:07]} 28. Kd1 {[%emt 0:02:30]} Bg5 {[%emt 0:01:57]} 29. Rb1 {[%emt 0:01:15]} e5 {[%emt 0:00:22]} 30. Ke1 {[%emt 0:01:31]} Rxc2 {[%emt 0:01:25] [#] White must now prevent ...e4.} 31. Nb4 {[%emt 0:00:26]} (31. Rb2 {was called for.} Rc4 32. Rb5) 31... Rc4 {[%emt 0:02:58] Weighted Error Value: White=0.43/Black=0.12 (very precise)   Mistake:       	White=4     	---        Inaccurate:     	White=1     	---        OK:         	White=6     	Black=6      Best:        	---       	Black=3      Strong:       	---       	Black=1} ({Less strong is} 31... Rxg2 32. Rc3+ Kd7 33. Kf1) 0-1

[Event "SixDays Budapest January IM-B 2025"]
[Site "Budapest"]
[Date "2025.01.27"]
[Round "2.3"]
[White "Varga, Csaba Zoltan"]
[Black "Horvath, David"]
[Result "1/2-1/2"]
[Annotator "TA"]
[ECO "A06"]
[WhiteElo "2198"]
[BlackElo "2299"]
[PlyCount "97"]
[EventDate "2025.01.24"]
[EventType "tourn"]
[EventCountry "HUN"]
[SourceTitle "playchess.com"]
[Source "ChessBase"]
[SourceQuality "1"]
[TimeControl "5400+30"]

{[%evp 9,97,13,7,1,7,-13,0,0,0,0,0,-10,4,0,-10,-37,-20,-31,-11,-14,-4,-4,-13,-21,-9,-21,-13,-16,-16,-22,-24,-24,-16,-21,-15,-19,-24,-67,-61,-64,-51,-70,8,4,8,8,36,31,36,25,20,23,22,6,8,11,2,0,0,-8,-10,-10,-4,-304,-273,-1404,-1000,-6697,-8069,-29957,-29959,-29960,-9521,-9578,0,0,0,0,0,0,0,0,0,0,0,0,0,0,0,0]} 1. b3 {[%emt 0:00:01]} d5 {[%emt 0:02:29]} 2. Nf3 {[%emt 0:00:06]} Nf6 {[%emt 0:00:16]} 3. e3 {[%emt 0:00:07]} e6 {[%emt 0:02:35]} 4. Bb2 {[%emt 0:00:44]} Bd6 {[%emt 0:00:11]} 5. d4 {[%emt 0:02:52]} O-O {[%emt 0:03:07]} 6. Nbd2 {[%emt 0:00:30] D05: Colle System with ...e6.} b6 {[%emt 0:00:41]} 7. g3 {[%emt 0:02:54]} c5 {[%emt 0:25:32]} 8. Bg2 {[%emt 0:00:15]} Ba6 {[%emt 0:00:17]} 9. c4 $146 {[%emt 0:00:14]} (9. Rc1 Nc6 10. c4 Nb4 11. Bf1 Nxa2 12. Ra1 Nb4 13. Be2 Bb7 14. O-O Ng4 15. h3 Nxe3 16. fxe3 Bxg3 {½-½ Kruse,W-Minor,D Karl Mala Memorial op 04th 2000 (7)}) 9... Nc6 {[%emt 0:02:03]} 10. O-O {[%emt 0:00:14] Not much happening anymore} Rc8 {[%emt 0:00:07]} 11. Ne5 {[%emt 0:05:49]} cxd4 {[%emt 0:22:20]} 12. exd4 {[%emt 0:01:25]} Na5 {[%emt 0:00:01][%cal Rd5c4]} (12... Bb4 13. Rc1 Na5 14. Qe2 Bxd2 15. Qxd2 dxc4 16. b4 c3) 13. Rc1 {[%emt 0:00:48]} dxc4 {[%emt 0:09:50]} (13... Bb4 {looks sharper.} 14. Qe2 Bxd2 15. Qxd2 dxc4 16. b4 c3) 14. Ndxc4 {[%emt 0:00:20]} Nxc4 {[%emt 0:00:18]} 15. bxc4 {[%emt 0:00:29] [#]} Bxe5 {[%emt 0:01:05]} 16. dxe5 {[%emt 0:00:11]} Nd7 {[%emt 0:00:04]} 17. Qd6 {[%emt 0:02:09]} Nc5 {[%emt 0:02:43]} 18. Rfd1 {[%emt 0:17:03]} Qxd6 {[%emt 0:01:29]} 19. exd6 {[%emt 0:00:31]} Rfd8 {[%emt 0:00:16]} 20. Ba3 {[%emt 0:02:11]} Rd7 {[%emt 0:07:55]} 21. Rd4 {[%emt 0:00:43]} Kf8 {[%emt 0:05:49]} 22. h4 {[%emt 0:03:37]} Bb7 {[%emt 0:03:34]} 23. h5 {[%emt 0:07:32]} Bxg2 {[%emt 0:04:20]} 24. Kxg2 {[%emt 0:00:32]} Rc6 {[%emt 0:01:17]} 25. Rcd1 {[%emt 0:00:15]} e5 {[%emt 0:00:48]} ({Black should try} 25... Ke8 $15) 26. Rd5 $11 {[%emt 0:00:16]} f6 {[%emt 0:00:08]} 27. Bxc5 {[%emt 0:01:33]} Rxc5 {[%emt 0:01:33]} 28. Rxc5 {[%emt 0:00:24]} bxc5 {[%emt 0:00:16][%mdl 4096] Endgame KR-KR} 29. Rd5 {[%emt 0:00:55][%cal Of2f4]} Kf7 {[%emt 0:00:05]} 30. Rxc5 {[%emt 0:01:16] Rc7 is the strong threat.} Ke6 $1 {[%emt 0:00:06]} 31. Kf3 {[%emt 0:03:13]} (31. h6 gxh6 32. f4 Rxd6 $15) 31... Rxd6 {[%emt 0:01:38]} 32. Rc7 {[%emt 0:00:39]} Rd7 {[%emt 0:00:02]} 33. Rxd7 {[%emt 0:03:37]} Kxd7 {[%emt 0:00:02] KP-KP} 34. Ke4 {[%emt 0:05:49]} Ke6 {[%emt 0:00:13]} 35. g4 {[%emt 0:01:02]} g6 {[%emt 0:00:05]} 36. Kd3 $2 {[%emt 0:05:48][%mdl 8192]} ({But not} 36. hxg6 hxg6 37. Kf3 Kd7 $15) (36. h6 $1 $11 {and White has nothing to worry.}) 36... Kd6 {[%emt 0:01:36]} 37. h6 {[%emt 0:02:12] [#]} (37. hxg6 hxg6 38. Ke4) 37... f5 $1 $19 {[%emt 0:00:24]} 38. gxf5 {[%emt 0:04:44]} gxf5 {[%emt 0:00:02]} 39. Kd2 {[%emt 0:00:49]} Kc5 {[%emt 0:00:11]} 40. Kd3 {[%emt 0:00:55]} Kb4 {[%emt 0:00:31]} (40... a6 $142 41. a3 a5 42. f3 a4 43. Kc3 e4 44. f4 e3 45. Kd3 e2 46. Kd2 Kxc4 47. Kxe2 Kd4 (47... Kb3 $2 48. Kd3 $19) 48. Kf3 Kd3 49. Kf2 Ke4 50. Kg3 Ke3 51. Kg2 Kxf4 52. Kf2 Kg5 53. Kg3 Kxh6 54. Kh4 Kg6 55. Kg3 h5 56. Kf4 h4 57. Kf3 Kg5 58. Ke3 Kg4 59. Kf2 h3 60. Kf1 Kg3 61. Kg1 f4 62. Kh1 f3 63. Kg1 f2+ 64. Kf1 h2 65. Ke2 h1=Q (65... h1=R {is a self mate.} 66. Kd3 f1=Q+ 67. Kd4 Qb5 68. Ke3 Qd7 69. Ke2 Qd1+ 70. Ke3 Re1#) 66. Kd3 f1=Q+ (66... f1=B+ 67. Kd4 Qc6 68. Ke5 Kg4 69. Kd4 Qc7 70. Ke4 Qd6 71. Ke3 Qf4#) 67. Kd4 Qc6 68. Ke3 Qf2+ 69. Kd3 Qcc2#) 41. f3 {[%emt 0:05:39]} a5 $2 {[%emt 0:02:08]} (41... Kc5 $19 {( -> ...a5)} 42. a3 a6) 42. a3+ $1 $11 {[%emt 0:00:56] The position is equal.} Kc5 $1 {[%emt 0:00:06] ( -> ...a4)} (42... Kxa3 43. c5 Kb2 44. c6 e4+ 45. fxe4 fxe4+ 46. Kxe4 $18) 43. Kc3 {[%emt 0:00:13]} Kb6 {[%emt 0:02:23]} (43... a4 $5 44. Kd3 $8 Kb6 $11) 44. Kd2 {[%emt 0:02:32]} Kc6 {[%emt 0:00:50]} 45. Kc2 {[%emt 0:00:27]} Kd6 {[%emt 0:00:40]} 46. Kd2 {[%emt 0:00:11]} Kc5 {[%emt 0:00:23]} 47. Kc3 {[%emt 0:00:13]} Kd6 {[%emt 0:00:52] aiming for ...Kc5.} 48. Kd2 {[%emt 0:00:09]} Kc5 {[%emt 0:00:32]} 49. Kc3 {[%emt 0:01:12] White happily takes the draw.   Weighted Error Value: White=0.69/Black=0.22 (precise)   Loses game:     	White=1     	---        Mistake:       	White=1     	Black=1      Inaccurate:     	White=3     	Black=1      OK:         	White=14    	Black=14     Best:        	White=2     	Black=1      Strong:       	---       	Black=2} 1/2-1/2

[Event "SixDays Budapest January IM-B 2025"]
[Site "Budapest"]
[Date "2025.01.27"]
[Round "2.4"]
[White "Ongut, Tamas Gunes"]
[Black "Senthil Maran K"]
[Result "1/2-1/2"]
[Annotator "TA"]
[ECO "B33"]
[WhiteElo "2262"]
[BlackElo "2398"]
[PlyCount "93"]
[EventDate "2025.01.24"]
[EventType "tourn"]
[EventCountry "HUN"]
[SourceTitle "playchess.com"]
[Source "ChessBase"]
[SourceQuality "1"]
[TimeControl "5400+30"]

{[%evp 15,93,52,44,43,47,31,42,23,35,0,0,0,0,0,0,0,0,0,0,-8,0,0,0,0,0,0,0,0,0,0,0,0,0,0,0,0,0,0,0,0,0,0,0,0,0,0,0,0,0,0,0,0,0,0,0,0,0,0,0,0,0,0,0,0,0,0,0,0,0,0,0,0,0,0,0,0,0,0,0,-5081]} 1. e4 {[%emt 0:07:56]} c5 {[%emt 0:08:19]} 2. Nf3 {[%emt 0:00:10]} Nc6 {[%emt 0:00:20]} 3. d4 {[%emt 0:00:09]} cxd4 {[%emt 0:00:07]} 4. Nxd4 {[%emt 0:00:07]} Nf6 {[%emt 0:01:04]} 5. Nc3 {[%emt 0:00:18]} g6 {[%emt 0:00:11]} 6. Nxc6 {[%emt 0:00:32]} dxc6 {[%emt 0:00:07]} 7. Qxd8+ {[%emt 0:00:08]} Kxd8 {[%emt 0:00:03]} 8. Bc4 {[%emt 0:05:42]} Ke8 {[%emt 0:00:42]} 9. a4 {[%emt 0:07:41]} Nd7 {[%emt 0:08:31]} 10. Be3 {[%emt 0:03:24]} e5 {[%emt 0:01:36]} 11. f3 {[%emt 0:08:58] White is slightly better.} Bc5 {[%emt 0:01:44]} 12. Ke2 {[%emt 0:00:29]} Bxe3 {[%emt 0:03:44] The position is equal.} 13. Kxe3 {[%emt 0:00:07]} a5 {[%emt 0:00:22]} 14. Nd1 {[%emt 0:02:57]} Nc5 {[%emt 0:06:03]} 15. Nf2 {[%emt 0:00:16]} Ke7 {[%emt 0:03:00]} 16. Nd3 {[%emt 0:05:11]} Nxd3 {[%emt 0:09:09]} 17. Kxd3 {[%emt 0:00:08]} Rd8+ {[%emt 0:02:12]} 18. Ke3 {[%emt 0:00:10]} Rd4 {[%emt 0:01:07]} 19. b3 {[%emt 0:00:20]} Be6 {[%emt 0:01:05]} 20. Bxe6 {[%emt 0:00:09]} Kxe6 $11 {[%emt 0:00:17][%mdl 4096] Endgame. KRR-KRR} 21. c3 {[%emt 0:00:10]} Rd7 {[%emt 0:01:35]} 22. Rhd1 {[%emt 0:00:12]} Rxd1 {[%emt 0:03:27]} 23. Rxd1 {[%emt 0:00:08] KR-KR} b5 {[%emt 0:00:08]} 24. Ra1 {[%emt 0:01:20]} Kd6 {[%emt 0:00:54]} 25. Kd3 {[%emt 0:01:27]} Kc5 {[%emt 0:02:05]} 26. Kc2 {[%emt 0:02:51]} Rd8 {[%emt 0:03:22]} 27. axb5 {[%emt 0:03:42]} Kxb5 {[%emt 0:00:07]} 28. h4 {[%emt 0:01:22]} h5 {[%emt 0:03:44]} 29. Rf1 {[%emt 0:02:50]} Rd6 {[%emt 0:04:01]} 30. g4 {[%emt 0:01:29]} Rf6 {[%emt 0:02:21] [#] ...hxg4 is the strong threat.} 31. gxh5 {[%emt 0:02:53]} gxh5 {[%emt 0:00:05]} 32. Rg1 $1 {[%emt 0:00:37]} Rxf3 {[%emt 0:11:00]} 33. Rg5 {[%emt 0:00:10][%csl LRe5,LRh5]} f6 {[%emt 0:04:40]} 34. Rxh5 {[%emt 0:00:14]} Kc5 {[%emt 0:04:23]} 35. Rf5 {[%emt 0:04:06]} Rxf5 {[%emt 0:03:06]} 36. exf5 {[%emt 0:00:10] [#] Threatening mate with h5. KP-KP} Kd6 $1 {[%emt 0:00:37]} 37. Kd3 {[%emt 0:00:12]} (37. h5 $5 Ke7 $8 38. Kd2 $11) 37... Ke7 {[%emt 0:00:06]} 38. Ke4 {[%emt 0:00:30]} Kf7 {[%emt 0:00:12]} 39. Kf3 {[%emt 0:00:18]} Kg7 {[%emt 0:00:05]} 40. Kg3 {[%emt 0:05:43]} Kh6 {[%emt 0:05:08]} 41. Kg4 {[%emt 0:00:10]} Kg7 {[%emt 0:03:10]} 42. Kf3 {[%emt 0:00:21]} Kh7 {[%emt 0:00:13]} 43. Kg3 {[%emt 0:00:25]} Kg8 {[%emt 0:05:19]} 44. Kf3 {[%emt 0:00:23]} Kh8 {[%emt 0:00:45]} 45. Ke3 {[%emt 0:00:35]} Kh7 {[%emt 0:00:24]} 46. Kf3 {[%emt 0:00:07]} Kh6 {[%emt 0:00:33]} 47. Ke4 $2 {[%mdl 40960] Weighted Error Value: White=0.03 (flawless) /Black=0.00 (flawless) .  Loses game:     	White=1     	---        Inaccurate:     	White=1     	---        OK:         	White=11    	Black=23     Best:        	White=1     	---        Strong:       	White=1     	Black=1     . An unexpected result.} (47. Kg4 $11) 1/2-1/2

[Event "SixDays Budapest January IM-B 2025"]
[Site "Budapest"]
[Date "2025.01.27"]
[Round "2.5"]
[White "Krizsany, Laszlo"]
[Black "Meers, Hubert"]
[Result "1/2-1/2"]
[Annotator "TA"]
[ECO "E16"]
[WhiteElo "2303"]
[BlackElo "2198"]
[PlyCount "70"]
[EventDate "2025.01.24"]
[EventType "tourn"]
[EventCountry "HUN"]
[SourceTitle "playchess.com"]
[Source "ChessBase"]
[SourceQuality "1"]
[TimeControl "5400+30"]

{[%evp 18,70,11,13,36,27,37,27,27,21,30,27,23,16,20,7,15,0,0,0,7,0,0,8,12,7,11,20,24,27,41,38,96,77,73,66,72,63,60,72,65,82,76,71,103,0,0,0,0,0,0,0,0,0,0]} 1. d4 {[%emt 0:00:04]} Nf6 {[%emt 0:00:05]} 2. c4 {[%emt 0:00:06]} e6 {[%emt 0:00:02]} 3. Nf3 {[%emt 0:00:16]} b6 {[%emt 0:00:06]} 4. g3 {[%emt 0:00:09]} Bb7 {[%emt 0:00:02]} 5. Bg2 {[%emt 0:00:07]} Bb4+ {[%emt 0:00:02]} 6. Bd2 {[%emt 0:00:14]} c5 {[%emt 0:00:05]} 7. Bxb4 {[%emt 0:00:33]} cxb4 {[%emt 0:00:05]} 8. O-O {[%emt 0:00:17]} O-O {[%emt 0:00:03] 8...a5 injects fresh life into this line.} 9. Nbd2 {[%emt 0:00:08]} d6 {[%emt 0:00:33]} 10. Re1 {[%emt 0:00:25]} Nbd7 {[%emt 0:01:23] E16: Queen's Indian: 4 g3 Bb7 5 Bg2 Bb4+.} 11. e4 {[%emt 0:01:04]} e5 {[%emt 0:00:03]} 12. Qb3 {[%emt 0:00:44]} a5 {[%emt 0:03:28] White has an edge.} 13. a3 $146 {[%emt 0:02:59]} (13. Rad1 Qc7 14. h3 {½-½ Kozak,M (2245)-Hrbolka,L (2230) CZE-chT2b 0506 2005 (1)}) 13... bxa3 {[%emt 0:22:38]} 14. Qxa3 {[%emt 0:03:20]} Qc7 {[%emt 0:00:16]} 15. h3 {[%emt 0:07:19]} Rfe8 {[%emt 0:01:13]} 16. Re3 {[%emt 0:03:19]} Nb8 {[%emt 0:05:22][%cal Bd7b8,Bb8a6,Ba6b4][%mdl 32]} 17. Qc3 {[%emt 0:12:15]} Na6 18. b3 {[%emt 0:12:25]} Rac8 {[%emt 0:07:38]} 19. Qb2 {[%emt 0:03:00]} Nb4 {[%emt 0:00:28]} 20. Rd1 {[%emt 0:02:41]} Qb8 {[%emt 0:08:50]} 21. Rc1 {[%emt 0:03:49]} Rcd8 {[%emt 0:14:29]} 22. Rce1 {[%emt 0:06:23]} Nd7 {[%emt 0:03:52]} 23. Nb1 {[%emt 0:06:33]} Qa8 {[%emt 0:13:49]} 24. Nc3 {[%emt 0:09:04]} f5 {[%emt 0:01:04]} 25. exf5 {[%emt 0:01:49] Hoping for Nb5.} exd4 {[%emt 0:00:06]} 26. Rxe8+ {[%emt 0:03:58]} (26. Nxd4 Rxe3 27. Rxe3 (27. fxe3 Nd3 $17) 27... Bxg2 $17) 26... Rxe8 {[%emt 0:00:02]} 27. Rxe8+ {[%emt 0:01:02]} Qxe8 {[%emt 0:00:03]} 28. Nxd4 {[%emt 0:00:21]} Qe1+ {[%emt 0:00:06]} 29. Kh2 {[%emt 0:01:11][%cal Bg1h2,Bh2g2,Bg2f3][%mdl 32]} Bxg2 {[%emt 0:02:05]} 30. Kxg2 {[%emt 0:00:06]} Ne5 {[%emt 0:00:50]} 31. Nf3 {[%emt 0:06:22]} ({White should play} 31. Ndb5 $16) 31... Nxf3 $11 {[%emt 0:01:24] The position is equal.} 32. Kxf3 {[%emt 0:00:03]} Nd3 {[%emt 0:00:10]} 33. Qc2 {[%emt 0:00:59]} Nb4 {[%emt 0:05:49]} 34. Qb2 {[%emt 0:00:48]} Nd3 {[%emt 0:03:12]} 35. Qc2 {[%emt 0:00:18]} Nb4 {[%emt 0:02:39] Weighted Error Value: White=0.11 (very precise) /Black=0.07 (flawless)   Mistake:       	White=1     	Black=1      Inaccurate:     	---       	Black=1      OK:         	White=12    	Black=10     Best:        	White=2     	Black=4} 1/2-1/2

[Event "SixDays Budapest January IM-B 2025"]
[Site "Budapest"]
[Date "2025.01.27"]
[Round "3.1"]
[White "Meers, Hubert"]
[Black "Subramanian, Anusha"]
[Result "1-0"]
[Annotator "TA"]
[ECO "C43"]
[WhiteElo "2198"]
[BlackElo "2044"]
[PlyCount "59"]
[EventDate "2025.01.24"]
[EventType "tourn"]
[EventCountry "HUN"]
[SourceTitle "playchess.com"]
[Source "ChessBase"]
[SourceQuality "1"]
[TimeControl "5400+30"]

{[%evp 9,59,0,4,7,13,12,14,9,6,6,8,12,8,0,8,0,0,0,10,0,0,0,0,0,19,9,65,65,131,104,552,545,1069,1010,1010,984,1527,1541,1380,337,976,941,1460,1460,29990,29991,29991,29992,29991,29990,29992,29993]} 1. e4 {[%emt 0:00:01]} e5 {[%emt 0:00:05]} 2. Nf3 {[%emt 0:00:03]} Nf6 {[%emt 0:00:04]} 3. d4 {[%emt 0:01:44]} Nxe4 {[%emt 0:00:25]} 4. Bd3 {[%emt 0:00:46]} d5 {[%emt 0:01:22]} 5. dxe5 {[%emt 0:00:15]} Be7 {[%emt 0:02:12]} 6. Nbd2 {[%emt 0:08:03] C43: Petroff Defence: 3 d4.} Nxd2 {[%emt 0:07:54]} 7. Bxd2 {[%emt 0:00:06]} c5 {[%emt 0:00:41]} 8. c3 $1 {[%emt 0:00:33] The position is equal.} Nc6 {[%emt 0:02:31]} 9. h3 {[%emt 0:05:18]} Be6 {[%emt 0:04:27]} 10. O-O {[%emt 0:00:39]} Qd7 {[%emt 0:00:55]} 11. a4 $146 {[%emt 0:05:56]} (11. Re1 h6 12. Rc1 O-O 13. Bf4 Bf5 14. Qc2 Bxd3 15. Qxd3 Qe6 16. a3 Rfd8 17. Bg3 {½-½ Roganovic,M (2480)-Spacek,P (2361) Regionalliga Sued-Ost 1819 2018 (1.1)}) 11... Bf5 {[%emt 0:06:18]} 12. Bg5 {[%emt 0:09:11]} Bxd3 {[%emt 0:07:41]} 13. Qxd3 {[%emt 0:00:05]} O-O {[%emt 0:02:23]} ({Of course not} 13... Bxg5 14. Nxg5 Nxe5 15. Rfe1 $16) 14. Rad1 {[%emt 0:04:49]} h6 {[%emt 0:02:37]} 15. Bxe7 {[%emt 0:06:25]} (15. Qxd5 Qxd5 16. Rxd5 hxg5 $17) 15... Nxe7 {[%emt 0:00:08]} 16. a5 {[%emt 0:04:28]} b6 {[%emt 0:05:02]} 17. Nh4 {[%emt 0:04:22]} Rfd8 {[%emt 0:11:46]} (17... bxa5 $11 18. f4 Qc7) 18. f4 $1 $14 {[%emt 0:02:50][%cal Bf2f4,Bf4f5,Bf5f6][%mdl 32] White is more active.} Qa4 {[%emt 0:07:16]} ({Black should try} 18... Qe6 $14) 19. Qg3 {[%emt 0:04:17] [#]} d4 $2 {[%emt 0:10:25][%mdl 8192] This move loses the game for Black.} (19... Rf8 $16 20. f5 f6) 20. f5 $18 {[%emt 0:00:56] Strongly threatening f6.} Qc2 {[%emt 0:01:02]} 21. f6 {[%emt 0:08:05][%csl Gf6][%cal Rg3g7]} Ng6 {[%emt 0:00:16] [#]} 22. e6 $1 {[%emt 0:01:38][%cal Be5e6,Be6f7][%mdl 544] Threatening mate with exf7+.} gxf6 {[%emt 0:04:11]} (22... Rf8 23. e7) 23. exf7+ {[%emt 0:02:51]} Kh7 {[%emt 0:04:08]} 24. Nf5 $2 {[%emt 0:00:21]} (24. Rde1) 24... Rd7 $2 {[%emt 0:02:39]} (24... Qb3 25. f8=B (25. cxd4 Qxg3 26. Nxg3 cxd4 $18) 25... Rxf8) 25. Qf3 {[%emt 0:01:15]} Rad8 {[%emt 0:07:07]} 26. Qh5 {[%emt 0:00:19][%csl Gf5][%cal Rh5h6]} Rxf7 {[%emt 0:00:20]} 27. Qxh6+ {[%emt 0:00:12] White mates.} Kg8 {[%emt 0:00:05]} 28. Qxg6+ {[%emt 0:00:06]} Kf8 {[%emt 0:00:08]} 29. Qh5 {[%emt 0:01:04][%cal Rh5h8]} Kg8 {[%emt 0:01:05]} 30. Nh6+ {[%emt 0:00:06] Weighted Error Value: White=0.25 (precise) /Black=1.58  Loses game:     	---       	Black=1      Mistake:       	---       	Black=2      Inaccurate:     	---       	Black=2      OK:         	White=3     	Black=2      Best:        	White=2     	---        Strong:       	White=2     	---} 1-0